Workbook

Sheet Assumptions
A1: Assumptions
A2: No of People/Household | B2: 5 | C2: No
A3: Peak Factor | B3: 3
A4: Self Cleaning Velocity | B4: 1 | C4: m/s
A5: Per Capita/Day Demand of Drinking Water | B5: 100 | C5: LPCD
A6: Grey Water Discharge Proportion of LPCD | B6: 0.8
A7: Usage/Day | B7: 12 | C7: Hours
A8: Width of the Household Plot | B8: 10 | C8: m
A9: Depth of the Household Plot | B9: 15 | C9: m
A10: Size of Household Plot | B10: =Width_Household*Depth_Household -> 150 | C10: sqm
A11: Road Width
A12: Internal Road | B12: 7.5 | C12: m
A13: Main Road | B13: 15 | C13: m
A14: Additional Area | B14: 0.2
A15: Rainfall Percolation Losses
A16: In Household | B16: 0.3
A17: On Road | B17: 0.4
A18: Proportion of Internal Roads on Overall Internal Roads
A19: 12-houses/side (Total 2 x 12 = 24 Houses) | B19: 0.5
A20: 8-houses/side (Total 2 x 8 = 16 Houses) | B20: =1-Proportion_12 -> 0.5
A21: Impervious Factor of the Village Area | B21: 0.8

Sheet Input Data
A1: Input Parameters
A2: Design Population
A3: Maximum Intensity of Rainfall (cm/hour)
A4: Total No. of Internal Roads | B4: =EVEN(CEILING(Population/(40*(Proportion_12+2)),1)) -> 0
A5: No of 12-houses/side Internal Roads | B5: =CEILING(Proportion_12*B4,1) -> 0
A6: No of 8-houses/side Internal Roads | B6: =Proportion_8*B4 -> 0
A7: No of Internal Roads with Drains Feasible on both sides
A8: No of 12-houses/side Internal Roads
A9: No of 8-houses/side Internal Roads
A10: No of Internal Roads with Drains Feasible on One Side Only
A11: No of 12-houses/side Internal Roads | B11: =B5-B8 -> 0
A12: No of 8-houses/side Internal Roads | B12: =B6-B9 -> 0

Sheet Assumptions-Input Data (hidden)
A1: Assumptions
A2: No of People/Household | B2: =Assumptions!B2 -> 5
A3: Peak Factor | B3: =Assumptions!B3 -> 3
A4: Self Cleaning Velocity | B4: =Assumptions!B4 -> 1
A5: Per Capita/Day Demand of Drinking Water | B5: =Assumptions!B5 -> 100
A6: Grey Water Discharge Proportion of LPCD | B6: =Assumptions!B6 -> 0.8
A7: Usage/Day | B7: =Assumptions!B7 -> 12
A8: Width of the Household Plot | B8: =Assumptions!B8 -> 10
A9: Depth of the Household Plot | B9: =Assumptions!B9 -> 15
A10: Size of Household Plot | B10: =Assumptions!B10 -> 150
A11: Road Width (m)
A12: Internal Road | B12: =Assumptions!B12 -> 7.5
A13: Main Road | B13: =Assumptions!B13 -> 15
A14: Additional Area | B14: =Assumptions!B14 -> 0.2
A15: Rainfall Percolation Losses (%)
A16: In Household | B16: =Assumptions!B16 -> 0.3
A17: On Road | B17: =Assumptions!B17 -> 0.4
A18: Proportion of Internal Roads on Overall Internal Roads (%)
A19: 12-houses/side (Total 2 x 12 = 24 Houses) | B19: =Assumptions!B19 -> 0.5
A20: 8-houses/side (Total 2 x 8 = 16 Houses) | B20: =Assumptions!B20 -> 0.5
A21: Impervious Factor of the Village Area | B21: =Assumptions!B21 -> 0.8
A23: Input Parameters
A24: Design Population | B24: ='Input Data'!B2 -> 0
A25: Maximum Intensity of Rainfall (cm/hour) | B25: ='Input Data'!B3 -> 0
A26: Total No. of Internal Roads | B26: ='Input Data'!B4 -> 0
A27: No of 12-houses/side Internal Roads | B27: ='Input Data'!B5 -> 0
A28: No of 8-houses/side Internal Roads | B28: ='Input Data'!B6 -> 0
A29: No of Internal Roads with Drains Feasible on both sides
A30: No of 12-houses/side Internal Roads | B30: ='Input Data'!B8 -> 0
A31: No of 8-houses/side Internal Roads | B31: ='Input Data'!B9 -> 0
A32: No of Internal Roads with Drains Feasible on One Side Only
A33: No of 12-houses/side Internal Roads | B33: ='Input Data'!B11 -> 0
A34: No of 8-houses/side Internal Roads | B34: ='Input Data'!B12 -> 0

Sheet Design Abstract
A1: Design Abstract
A3: S.No. | B3: Road | C3: No | D3: One Side/ Two Sides | E3: Length of the Road (m) | F3: Total Length of the Drain (m) | G3: Cross Section Area of the Drain (sqm) | H3: Drain Dimensions (mm)
H4: Trapezoidal | K4: Semi-Circular
H5: Top Width | I5: Bottom Width | J5: Depth | K5: Diameter
A6: 1 | B6: Main Road | C6: 1 | D6: 2 | E6: ='Discharge-Main Road'!$I$23 -> 0 | F6: =C6*D6*E6 -> 0 | G6: ='Drain-Cross Sections'!B8 -> 0 | H6: ='Drain-Cross Sections'!B11 ->  | I6: ='Drain-Cross Sections'!B9 -> 0 | J6: ='Drain-Cross Sections'!B10 -> 0
A7: 2 | B7: Internal Roads
A8: a | B8: 12-Houses/Side | C8: ='Input Data'!$B$11 -> 0 | D8: 1 | E8: =12*Width_Household -> 120 | F8: =C8*D8*E8 -> 0 | G8: ='Drain-Cross Sections'!B22 -> 0.0006672 | K8: ='Drain-Cross Sections'!B27 -> 100
C9: ='Input Data'!$B$8 -> 0 | D9: 2 | E9: =12*Width_Household -> 120 | F9: =C9*D9*E9 -> 0 | G9: ='Drain-Cross Sections'!C22 -> 0.0003336 | K9: ='Drain-Cross Sections'!C27 -> 100
A10: b | B10: 8-Houses/Side | C10: ='Input Data'!$B$12 -> 0 | D10: 1 | E10: =8*Width_Household -> 80 | F10: 0 | G10: ='Drain-Cross Sections'!B36 -> 0.0004448 | K10: ='Drain-Cross Sections'!B41 -> 100
C11: ='Input Data'!$B$9 -> 0 | D11: 2 | E11: =8*Width_Household -> 80 | F11: 0 | G11: ='Drain-Cross Sections'!C36 -> 0.0002224 | K11: ='Drain-Cross Sections'!C41 -> 100

Sheet Discharge-Household & IRs
A1: Discharge from one Household
A2: I. Grey Water Discharge
B3: No of persons/household | J3: =People_Household -> 5 | K3: No
B4: Total Water Demand/ person/ Day (LPCD) | J4: =LPCD -> 100 | K4: lit
B5: ="∴ Total Water Demand/Household/Day = " &J3&" x " &J4&" = " -> ∴ Total Water Demand/Household/Day = 5 x 100 = | J5: =J3*J4 -> 500 | K5: lit
B6: ="Grey Water Discharge at " & 100*Grey_Water_Proportion & "% of total water demand = " & 100*Grey_Water_Proportion & "% x " & J5 & " = " -> Grey Water Discharge at 80% of total water demand = 80% x 500 = | J6: =Grey_Water_Proportion*J5 -> 400 | K6: Lit
B7: ="Assuming Usage Period at " & Usage_Day & " hours, discharge = " & J6 & "/(" &Usage_Day&" x 60) = " -> Assuming Usage Period at 12 hours, discharge = 400/(12 x 60) = | J7: =ROUND(J6/(Usage_Day*60),6) -> 0.555556 | K7: lpm
B8: ="Taking Peak factor as " & Peak_Factor & ", Peak Discharge = " &J7&" x " & Peak_Factor & " =" -> Taking Peak factor as 3, Peak Discharge = 0.555556 x 3 = | J8: =ROUND(Peak_Factor*J7,6) -> 1.666668 | K8: lpm
B9: ="Peak Discharge in cum/sec = " & J8 & "/(1000 x 60) = " -> Peak Discharge in cum/sec = 1.666668/(1000 x 60) = | J9: =ROUND(J8/60000,7) -> 2.78e-05 | K9: cum/sec
A10: II. Rainfall Discharge
B11: Area of one household plot in sqm = | J11: =Area_Household -> 150 | K11: sqm
B12: ="Area of one household plot in Ha = " & J11 & "/10000 = " -> Area of one household plot in Ha = 150/10000 = | J12: =ROUND(J11/10000,4) -> 0.015 | K12: Ha
B13: ="Treating Percolation Losses at " & 100*Percolation_Household & "%, Effective Area = ( 1- " & Percolation_Household &") x " & J12 & " =" -> Treating Percolation Losses at 30%, Effective Area = ( 1- 0.3) x 0.015 = | J13: =ROUND((1-Percolation_Household)*J12,4) -> 0.0105 | K13: Ha
B14: ="Assuming Impervious Factor at " & Impervious_Factor & ", Rainfall Discharge = RAP/36 = " & Rainfall & " x " &J13&" x " &Impervious_Factor& "/36 =" -> Assuming Impervious Factor at 0.8, Rainfall Discharge = RAP/36 = x 0.0105 x 0.8/36 = | J14: =ROUND(Rainfall*J13*Impervious_Factor/36,7) -> 0 | K14: cum/sec
A15: III. Total Discharge/household
A16: ="Total Discharge = Grey Water Discharge + Rain Water Discharge = " & J9 & " + " &J14& " =" -> Total Discharge = Grey Water Discharge + Rain Water Discharge = 0.0000278 + 0 = | J16: =J9+J14 -> 2.78e-05 | K16: cum/sec
A18: Discharge from Internal Roads
A19: I. From Households of the Internal Road
B20: Total Discharge/Household (Grey Water and Rainfall) | I20: =Discharge_Household -> 2.78e-05 | K20: cum/sec
B21: Total Discharge from all house holds of the Internal Road (Grey Water + Rainfall)
B22: No of houses/side | I22: 12 | J22: 8 | K22: No
B23: Total Houses/Internal Road = 2 x No of Houses/Side = | I23: 24 | J23: 16 | K23: No
B24: Total Discharge from all the households @ 0.0000278 cum/sec = | I24: =I23*I20 -> 0.0006672 | J24: =J23*I20 -> 0.0004448 | K24: cum/sec
A25: II. Rainfall Discharge from the Internal Road
B26: Width of the Internal Road 7.5 m
B27: Length of the Internal Road taking 10 m (along road)/household x no. of houses on one side = | I27: =12*Width_Household -> 120 | J27: =8*Width_Household -> 80 | K27: m
B28: Area of the Internal Road = Length x Width of the Road = Length x 7.5 = | I28: =I27*RW_Internal -> 900 | J28: =J27*RW_Internal -> 600 | K28: sqm
B29: Add 20% common area for the internal road | I29: =0.2*I28 -> 180 | J29: =0.2*J28 -> 120 | K29: sqm
B30: Total Area of the Internal Road (Including Common Area) = | I30: =I28+I29 -> 1080 | J30: =J28+J29 -> 720 | K30: sqm
B31: Assuming Percolation Losses for Road at 40%, Effective Area = (1-0.4) x Gross Area = | I31: =(1-Percolation_Road)*I30 -> 648 | J31: =(1-Percolation_Road)*J30 -> 432 | K31: sqm
B32: Total Area of internal roads in Ha = Effective Area (sqm)/10000 = | I32: =I31/10000 -> 0.0648 | J32: =J31/10000 -> 0.0432 | K32: Ha
B33: Rainfall Discharge for Internal Road = RAP/36 = | I33: =ROUND(Rainfall*I32*Impervious_Factor/36,7) -> 0 | J33: =ROUND(Rainfall*J32*Impervious_Factor/36,7) -> 0 | K33: cum/sec
B34: Where
C35: R = Rainfall Intensity | I35: =Rainfall -> 0 | K35: cm/hour
C36: A = Effective Area of Internal Road (considering percolation losses) in Ha as above
C37: P = Impervious Factor = | I37: =Impervious_Factor -> 0.8
A38: III. Total Discharge from the Internal Road
B39: Total Discharge for the Internal Roads = Total Discharge from the Households + Rainfall Discharge | I39: =I24+I33 -> 0.0006672 | J39: =J24+J33 -> 0.0004448 | K39: cum/sec

Sheet Discharge-Main Road
A1: Discharge from the Main Road
A2: I. Determination of Distribution of 12_houses/Side-Internal Roads AND 8_houses/side-Internal Roads
B3: Let N be the total no. of internal roads, N1 be the no. of 12-houses/side internal roads, and N2 be the no. of 8-houses/side internal roads
B4: Proportion of N_12 (12-houses/Side Internal Roads) = | J4: =Proportion_12 -> 0.5
B5: Proportion of N_8 (8-houses/Side Internal Roads) = | J5: =Proportion_8 -> 0.5
B6: ="N1 = No of 12-Houses/Side - Internal Roads = " -> N1 = No of 12-Houses/Side - Internal Roads = | J6: =Proportion_12 & " x N" -> 0.5 x N
B7: ="N2 = No of 8-Houses/Side - Internal Roads = " -> N2 = No of 8-Houses/Side - Internal Roads = | J7: =Proportion_8 & " x N" -> 0.5 x N
B8: ="P1 = Total Population in 12-houses/side-Internal Roads = N1 x 2 x 12 x No people/household = " & Proportion_12 & "N x 2 x 12 x 5 = " -> P1 = Total Population in 12-houses/side-Internal Roads = N1 x 2 x 12 x No people/household = 0.5N x 2 x 12 x 5 = | J8: =Proportion_12*120 & " x N" -> 60 x N
B9: ="P2 = Total Population in 8-houses/side-Internal Roads = N2 x 2 x 8 x No people/household = " & Proportion_8 & "N x 2 x 8 x 5 = " -> P2 = Total Population in 8-houses/side-Internal Roads = N2 x 2 x 8 x No people/household = 0.5N x 2 x 8 x 5 = | J9: =Proportion_8*80 & " x N" -> 40 x N
B10: ="∴ Total Population = P1+P2 = " & J8 & " + " &J9 & " = (" & 120*Proportion_12 & " + " & 80*Proportion_8 & ") x N = " -> ∴ Total Population = P1+P2 = 60 x N + 40 x N = (60 + 40) x N = | J10: =120*Proportion_12 + 80*Proportion_8&" x N" -> 100 x N
B11: But Total Population P = P1 + P2 = Design Population
B12: ="∴ " &J10 & " = " & Population -> ∴ 100 x N = | D12: ="∴ N = Total No. of Internal Roads = " & Population & "/ (" & 120*Proportion_12 & " + " & 80*Proportion_8 & ") =" & Population & "/" & 120*Proportion_12+ 80*Proportion_8 & " = " -> ∴ N = Total No. of Internal Roads = / (60 + 40) =/100 = | J12: =EVEN(CEILING(Population/(120*Proportion_12 + 80*Proportion_8),1)) -> 0
B13: ="N1 = No of 12-Houses/Side - Internal Roads = " & 100*Proportion_12 & "% x " & Total_Roads & " = " -> N1 = No of 12-Houses/Side - Internal Roads = 50% x 0 = | I13: =CEILING(Proportion_12*Total_Roads,1) -> 0 | J13: No
B14: ="N2 = No of 8-Houses/Side - Internal Roads = " & 100*Proportion_8 & "% x " & Total_Roads & " = " -> N2 = No of 8-Houses/Side - Internal Roads = 50% x 0 = | I14: =CEILING(Proportion_8*Total_Roads,1) -> 0 | J14: No
A15: II. Discharge from Internal Roads
B16: ="Discharge from 12_houses/side-Internal roads = No of 12_houses/side-internal roads x Discharge/that road = " &Twelve_Housed_Roads & " x " & Discharge_12_IR -> Discharge from 12_houses/side-Internal roads = No of 12_houses/side-internal roads x Discharge/that road = 0 x 0.0006672 | I16: =ROUND(Twelve_Housed_Roads*Discharge_12_IR,7) -> 0 | J16: cum/sec
B17: ="Discharge from 8_houses/side-Internal roads = No of 12_houses/side-internal roads x Discharge/that road = " &Eight_Housed_Roads & " x " & Discharge_8_IR -> Discharge from 8_houses/side-Internal roads = No of 12_houses/side-internal roads x Discharge/that road = 0 x 0.0004448 | I17: =ROUND(Eight_Housed_Roads*Discharge_8_IR,7) -> 0 | J17: cum/sec
B18: Total Discharge from the Internal Roads on to the Main Road = | I18: =I16+I17 -> 0 | J18: cum/sec
A19: III. Rainfall Discharge for the Main Road
B20: Width of the Main Road = | I20: =RW_Main -> 15 | J20: m
B21: Length of the Main Road = No of Internal Roads on One side of the Main Road x Width of Internal Road
B22: ="Length of the Main Road = (" & Total_Roads & "/2 ) x " & RW_Internal&" =" -> Length of the Main Road = (0/2 ) x 7.5 = | I22: =(Total_Roads/2) *RW_Internal -> 0 | J22: m
B23: Or say | I23: =CEILING(I22,5) -> 0 | J23: m
B24: ="Area of the Main Road = Length x Width = " & I23 & " x " &I20 & " =" -> Area of the Main Road = Length x Width = 0 x 15 = | I24: =I23&I20 -> 015 | J24: sqm
B25: ="Add Additional Area @ " & 100*Additional_Area & "% for common areas = " & I24 & " x " & 100*Additional_Area & "% = " -> Add Additional Area @ 20% for common areas = 015 x 20% = | I25: =ROUND(Additional_Area*I24,0) -> 3 | J25: sqm
B26: ="∴ Total area of the Main Road (Including common areas) = " & I24 & " + " & I25 & " =" -> ∴ Total area of the Main Road (Including common areas) = 015 + 3 = | I26: =I24+I25 -> 18 | J26: sqm
B27: ="Assuming Percolation losses for the Road @ " & 100*Percolation_Road & "%, Effective Area = (1-" &Percolation_Road&") x "&I26& " " -> Assuming Percolation losses for the Road @ 40%, Effective Area = (1-0.4) x 18 | I27: =ROUND((1-Percolation_Road)*I26,0) -> 11 | J27: sqm
B28: ="Total Effective Area of the Main Road in Ha = Effective Area (sqm)/10000 = " & I27 & "/10000 = " -> Total Effective Area of the Main Road in Ha = Effective Area (sqm)/10000 = 11/10000 = | I28: =I27/10000 -> 0.0011 | J28: Ha
B29: ∴ RainfallDischarge for the Main Road = RAP/36 = | I29: =ROUND(Rainfall*I28*Impervious_Factor/36,7) -> 0 | J29: cum/sec
B30: Where
B31: R = Rainfall Intensity | I31: =Rainfall -> 0 | J31: cm/hour
B32: A = Effective Area of Internal Road (considering percolation losses) in Ha as above
B33: P = Impervious Factor = | I33: =Impervious_Factor -> 0.8
A34: IV. Total Discharge the Main Road
B35: ="Total Discharge for the Main Road = Total Discharge from the Internal Roads + Rainfall Discharge from the Main Road (including common areas) = " &Discharge_IR & " + " &I29 & " =" -> Total Discharge for the Main Road = Total Discharge from the Internal Roads + Rainfall Discharge from the Main Road (including common areas) = 0 + 0 = | I35: =Discharge_IR+I29 -> 0 | J35: cum/sec

Sheet Drain-Cross Sections
A1: Design of Cross Section of Trapezoidal Side Drain for the Main Road on Two Sides of the Road
A2: Shape of the Drain | B2: Trapezoidal
A3: Drain is Considered on One Side/Two Sides | B3: Two Sides
A4: I. Total Discharge from the Main Road = | B4: =Discharge_MR -> 0 | C4: cum/sec
A5: ="Since Drains are considered on " & B3 & " of the road, design discharge = " & B4 & IF(B3="One Side","","/2") -> Since Drains are considered on Two Sides of the road, design discharge = 0/2 | B5: =ROUND(B4/IF(B3="One Side",1,2),3) -> 0 | C5: cum/sec
A6: II. Cross Sectional Area of the Drain
A7: Cross Sectional Area of the Side Drain = Discharge/Self Cleaning Velocity = Q/V
A8: ="= " &B5& " / " & Self_Cleaning_Velocity -> = 0 / 1 | B8: =B5/Self_Cleaning_Velocity -> 0 | C8: sqm
A9: Assume Bottom Width of the Drain = | C9: mm
A10: Assuem Depth of the Drain | C10: mm
A11: ∴ Top Width of the Drain (Rounded to nearest 100 mm) = | B11: =IFERROR(CEILING((2*B8*1000*1000/B10)-B9,100),"") ->  | C11: mm
A13: Design of Cross Section of Semi-Crcular Drains for Internal Roads
A15: 12 Houses/Side - Internal Roads
A16: Shape of the Drain | B16: Semi-Circular
A17: Drain is Considered on One Side/Two Sides | B17: One Side | C17: Two Sides
A18: I. Total Discharge from a 12-houses/Side Internal Road = | B18: =Discharge_12_IR -> 0.0006672
A19: ="Since Drains are considered on " & B17 & " of the road, design discharge = " & B18 & IF(B17="One Side","","/2") -> Since Drains are considered on One Side of the road, design discharge = 0.0006672 | B19: =ROUND($B$18/IF(B17="One Side",1,2),7) -> 0.0006672 | C19: =ROUND($B$18/IF(C17="One Side",1,2),7) -> 0.0003336
A20: II. Cross Sectional Area of the Drain
A21: Cross Sectional Area of the Side Drain = Discharge/Self Cleaning Velocity = Q/V
A22: ="= " &B19& " / " & Self_Cleaning_Velocity -> = 0.0006672 / 1 | B22: =B19/Self_Cleaning_Velocity -> 0.0006672 | C22: =C19/Self_Cleaning_Velocity -> 0.0003336
A23: Since shape of the drain is Semi-Circular, Cross Sectional Area =
A24: ∴ r2 = 2 x Cross Sectional Area/π
A25: ="∴ Radius of Semi-Circular Drain r = Sqrt (2 x Cross Sectional Area/π) = SQRT(2 x " & B22 & "/ π)" -> ∴ Radius of Semi-Circular Drain r = Sqrt (2 x Cross Sectional Area/π) = SQRT(2 x 0.0006672/ π) | B25: =ROUND(SQRT(2*B22/PI()),3) -> 0.021 | C25: =ROUND(SQRT(2*C22/PI()),3) -> 0.015
A26: Or Say Radius = | B26: =CEILING(B25*1000,50) -> 50 | C26: =CEILING(C25*1000,50) -> 50
A27: ∴ Diameter of the Semi-Circular Drain = | B27: =B26*2 -> 100 | C27: =C26*2 -> 100
A29: 8 Houses/Side - Internal Roads
A30: Shape of the Drain | B30: Semi-Circular
A31: Drain is Considered on One Side/Two Sides | B31: One Side | C31: Two Sides
A32: I. Total Discharge from a 12-houses/Side Internal Road = | B32: =Discharge_8_IR -> 0.0004448
A33: ="Since Drains are considered on " & B31 & " of the road, design discharge = " & B32 & IF(B31="One Side","","/2") -> Since Drains are considered on One Side of the road, design discharge = 0.0004448 | B33: =ROUND($B$32/IF(B31="One Side",1,2),7) -> 0.0004448 | C33: =ROUND($B$32/IF(C31="One Side",1,2),7) -> 0.0002224
A34: II. Cross Sectional Area of the Drain
A35: Cross Sectional Area of the Side Drain = Discharge/Self Cleaning Velocity = Q/V
A36: ="= " &B33& " / " & Self_Cleaning_Velocity -> = 0.0004448 / 1 | B36: =B33/Self_Cleaning_Velocity -> 0.0004448 | C36: =C33/Self_Cleaning_Velocity -> 0.0002224
A37: Since shape of the drain is Semi-Circular, Cross Sectional Area =
A38: ∴ r2 = 2 x Cross Sectional Area/π
A39: ="∴ Radius of Semi-Circular Drain r = Sqrt (2 x Cross Sectional Area/π) = SQRT(2 x " & B36 & "/ π)" -> ∴ Radius of Semi-Circular Drain r = Sqrt (2 x Cross Sectional Area/π) = SQRT(2 x 0.0004448/ π) | B39: =ROUND(SQRT(2*B36/PI()),3) -> 0.017 | C39: =ROUND(SQRT(2*C36/PI()),3) -> 0.012
A40: Or Say Radius = | B40: =CEILING(B39*1000,50) -> 50 | C40: =CEILING(C39*1000,50) -> 50
A41: ∴ Diameter of the Semi-Circular Drain = | B41: =B40*2 -> 100 | C41: =C40*2 -> 100

Sheet CS_Main Road (hidden)
A1: Design of Cross Section of Trapezoidal Side Drain for the Main Road on Two Sides of the Road
A2: Shape of the Drain | B2: Trapezoidal
A3: Drain is Considered on One Side/Two Sides | B3: Two Sides
A4: I. Total Discharge from the Main Road = | B4: =Discharge_MR -> 0 | C4: cum/sec
A5: ="Since Drains are considered on " & B3 & " of the road, design discharge = " & B4 & IF(B3="One Side","","/2") -> Since Drains are considered on Two Sides of the road, design discharge = 0/2 | B5: =ROUND(B4/IF(B3="One Side",1,2),3) -> 0 | C5: cum/sec
A6: II. Cross Sectional Area of the Drain
A7: Cross Sectional Area of the Side Drain = Discharge/Self Cleaning Velocity = Q/V
A8: ="= " &B5& " / " & Self_Cleaning_Velocity -> = 0 / 1 | B8: =B5/Self_Cleaning_Velocity -> 0 | C8: sqm
A9: Assume Bottom Width of the Drain = | B9: 200 | C9: mm
A10: Assuem Depth of the Drain | B10: 450 | C10: mm
A11: ∴ Top Width of the Drain = | B11: =CEILING((2*B8*1000*1000)/(B9+B10),50) -> 0 | C11: mm
